{"text_format":"1","workbook":"xlsx","n_sheets":3,"sheets":["TEX-423b","RX","Revisions"],"not_rendered":{"charts":0,"images":2,"macros":1,"external_links":0,"defined_names":4397,"comments":1,"pivot_tables":0},"unopened":[],"bounds":{"document_bytes":16777216,"sheet_cells":100000,"rows_first":2000,"rows_last":500,"rows_between":2000,"halvings":0,"cell_chars":16384,"cell_head_chars":4096},"cells_cut":0,"cells_raw":0,"read":"whole","date_system":"1900"}

{"sheet":"TEX-423b","index":0,"n_rows":150,"n_cols":52,"rows_kept":150,"cut":false,"hidden":false,"merged":[[41,42,43,42],[16,11,16,15],[11,11,11,15],[29,22,30,32],[41,43,43,43],[42,17,42,19],[41,41,43,41],[42,20,42,22],[42,23,42,25],[42,26,42,28],[42,29,42,31],[42,32,42,34],[42,35,42,37],[41,38,43,38],[41,39,43,39],[41,40,43,40],[41,20,41,37],[23,17,23,19],[32,1,33,19],[18,13,18,15],[23,2,23,4],[23,5,23,7],[23,8,23,10],[23,11,23,13],[23,14,23,16],[18,4,18,6],[18,7,18,8],[18,22,20,32],[11,1,11,4],[12,1,12,4],[18,1,18,3],[18,9,18,12],[15,1,15,4],[14,5,14,20],[15,5,15,20],[13,1,13,4],[11,16,11,20],[12,16,12,20],[14,1,14,4],[13,16,13,20],[13,5,13,10],[13,11,13,15],[12,5,12,10],[18,16,18,20],[16,16,16,20],[7,5,7,10],[8,5,8,10],[9,5,9,10],[10,5,10,10],[11,5,11,10],[7,16,7,20],[8,16,8,20],[7,11,7,15],[8,11,8,15],[9,11,9,15],[9,16,9,20],[12,11,12,15],[10,16,10,20],[10,11,10,15],[16,5,16,10],[150,5,150,7],[150,1,150,4],[148,7,148,9],[148,10,148,12],[39,9,39,11],[42,11,42,13],[39,12,39,19],[39,7,39,8],[148,1,148,3],[148,4,148,6],[42,14,42,16],[0,0,0,2],[41,2,41,19],[41,1,43,1],[42,2,42,4],[42,5,42,7],[42,8,42,10],[36,3,36,5],[39,1,39,6],[16,1,16,4],[9,1,9,4],[37,1,37,2],[37,3,37,11],[37,12,37,14],[7,1,7,4],[8,1,8,4],[10,1,10,4]]}
["TxDOT Manuals >"]
[null,"TEXAS DEPARTMENT OF TRANSPORTATION",null,null,null,null,null,null,null,null,null,null,null,null,null,null,null,null,null,null,null,null,null,null,null,null,null,null,null,null,null,null,null,null,44]
[null,null,null,null,null,null,null,null,null,null,null,null,null,null,null,null,null,null,null,null,null,null,null,null,null,null,null,null,null,null,null,null,null,null,1]
[null,null,null,null,null,null,null,null,null,null,null,null,null,null,null,null,null,null,null,null,null,null,null,null,null,null,null,null,null,null,null,null,null,null,"tx423b.xlsm::45575.628009"]
[null,"DIRECT MEASUREMENT OF BRIDGE DECK THICKNESS",null,null,null,null,null,null,null,null,null,null,null,null,null,null,null,null,null,null,null,null,null,null,null,null,null,null,null,null,null,null,null,null,4244]
[]
[null,null,null,null,null,null,null,null,null,null,null,null,null,null,null,null,null,null,null,null,{"$f":"\"TX423b - File Version: \" & TEXT(MID(sn,SEARCH(\"::\",sn,1)+2,20),\"mm/dd/yy hh:mm:ss\")","v":"TX423b - File Version: 10/10/24 15:04:20"}]
[null,"SAMPLE ID:",null,null,null,null,null,null,null,null,null,"SAMPLED DATE:"]
[null,"TEST NUMBER:",null,null,null,null,null,null,null,null,null,"LETTING DATE:"]
[null,"SAMPLE STATUS:",null,null,null,null,null,null,null,null,null,"CONTROLLING CSJ:",null,null,null,null,""]
[null,"COUNTY:",null,null,null,null,null,null,null,null,null,"SPEC YEAR:"]
[null,"SAMPLED BY:",null,null,null,null,null,null,null,null,null,"SPEC ITEM:",null,null,null,null,""]
[null,"SAMPLE LOCATION:",null,null,null,null,null,null,null,null,null,"SPECIAL PROVISION:"]
[null,"MATERIAL CODE:",null,null,null,null,null,null,null,null,null,"MIX TYPE / GRADE:"]
[null,"MATERIAL NAME:"]
[null,"PRODUCER:",null,null,null,""]
[null,"AREA ENGINEER:",null,null,null,"",null,null,null,null,null,"PROJECT MANAGER:",null,null,null,null,""]
[]
[null,"COURSE\\LIFT:",null,null,null,null,null,"STATION:",null,null,null,null,null,"DIST. FROM CL:",null,null,null,null,null,null,null,null,"Min. 6 - Max. 18 per span, as per test method. Record locations and dimensions and place in projecr records"]
[]
[null,null,null,null,null,null,null,null,null,null,null,null,null,false]
[]
[]
[null,null,"Bay 1",null,null,"Bay 2",null,null,"Bay 3",null,null,"Bay 4",null,null,"Bay 5",null,null,"Bay 6"]
[null,null,0.25,0.5,0.75,0.25,0.5,0.75,0.25,0.5,0.75,0.25,0.5,0.75,0.25,0.5,0.75,0.25,0.5,0.75]
[null,null,null,null,null,null,null,null,null,null,"Concrete Depth,(inches)"]
[]
[]
[null,null,null,null,null,null,null,null,null,null,"Steel Cover,(inches)"]
[]
[]
[null,"Remarks:",null,null,{"$f":"NOW()","v":"2024-10-10T15:04:20.420"}]
[]
[]
[]
[]
[null,"Test Method:",null,"Tested By:",null,null,null,null,null,null,null,null,"Tested Date:"]
[null,"TX423"]
[null,"Test Stamp Code:",null,null,null,null,null,"Omit Test:",null,"Completed Date:",null,null,"Reviewed By:"]
[]
[]
[null,"Test Number","Concrete Depth, (inches)",null,null,null,null,null,null,null,null,null,null,null,null,null,null,null,null,null,"Steel Cover, (inches)",null,null,null,null,null,null,null,null,null,null,null,null,null,null,null,null,null,"TX423 - TESTED BY","TEST DATE","STAMP CODE","OIMT INDICATOR","COMPLETE DATE","REMARKS"]
[null,null,"Bay 1",null,null,"Bay 2",null,null,"Bay 3",null,null,"Bay 4",null,null,"Bay 5",null,null,"Bay 6",null,null,"Bay 1",null,null,"Bay 2",null,null,"Bay 3",null,null,"Bay 4",null,null,"Bay 5",null,null,"Bay 6"]
[null,null,0.25,0.5,0.75,0.25,0.5,0.75,0.25,0.5,0.75,0.25,0.5,0.75,0.25,0.5,0.75,0.25,0.5,0.75,0.25,0.5,0.75,0.25,0.5,0.75,0.25,0.5,0.75,0.25,0.5,0.75,0.25,0.5,0.75,0.25,0.5,0.75]
[]
[null,"SMPL_TST_NBR","BAY_11_06","BAY_12_07","BAY_13_08","BAY_21_09","BAY_22_10","BAY_23_11","BAY_31_12","BAY_32_13","BAY_33_14","BAY_41_15","BAY_42_16","BAY_43_17","BAY_51_18","BAY_52_19","BAY_53_20","BAY_61_21","BAY_62_22","BAY_63_23","BAY_11_27","BAY_12_28","BAY_13_29","BAY_21_30","BAY_22_31","BAY_23_32","BAY_31_33","BAY_32_34","BAY_33_35","BAY_41_36","BAY_42_37","BAY_43_38","BAY_51_39","BAY_52_40","BAY_53_41","BAY_61_42","BAY_62_43","BAY_63_44","TESTED_BY_TX423B_24","TESTED_DATE_TX423B_25","STMP_CD","OMIT_IND","ACTL_CMPL_DT","REMARKS_01","RVWR_UID","SMPL_ID","TST_METH","SPEC_YEAR_02","GRADE_04","SPECIAL_PROVISION_03","COURSE_05","AUTOTEMPLATE_26"]
[{"$f":"IF(COUNTBLANK(C47:AR47)=42,0,1)","v":0},"~AT001",null,null,null,null,null,null,null,null,null,null,null,null,null,null,null,null,null,null,null,null,null,null,null,null,null,null,null,null,null,null,null,null,null,null,null,null,null,null,null,null,null,null,null,"xx","TX423B"]
[{"$f":"IF(COUNTBLANK(C48:AR48)=42,0,1)","v":0},"~AT002",null,null,null,null,null,null,null,null,null,null,null,null,null,null,null,null,null,null,null,null,null,null,null,null,null,null,null,null,null,null,null,null,null,null,null,null,null,null,null,null,null,null,null,"xx","TX423B"]
[0,"~AT003",null,null,null,null,null,null,null,null,null,null,null,null,null,null,null,null,null,null,null,null,null,null,null,null,null,null,null,null,null,null,null,null,null,null,null,null,null,null,null,null,null,null,null,"xx","TX423B"]
[0,"~AT004",null,null,null,null,null,null,null,null,null,null,null,null,null,null,null,null,null,null,null,null,null,null,null,null,null,null,null,null,null,null,null,null,null,null,null,null,null,null,null,null,null,null,null,"xx","TX423B"]
[0,"~AT005",null,null,null,null,null,null,null,null,null,null,null,null,null,null,null,null,null,null,null,null,null,null,null,null,null,null,null,null,null,null,null,null,null,null,null,null,null,null,null,null,null,null,null,"xx","TX423B"]
[0,"~AT006",null,null,null,null,null,null,null,null,null,null,null,null,null,null,null,null,null,null,null,null,null,null,null,null,null,null,null,null,null,null,null,null,null,null,null,null,null,null,null,null,null,null,null,"xx","TX423B"]
[0,"~AT007",null,null,null,null,null,null,null,null,null,null,null,null,null,null,null,null,null,null,null,null,null,null,null,null,null,null,null,null,null,null,null,null,null,null,null,null,null,null,null,null,null,null,null,"xx","TX423B"]
[0,"~AT008",null,null,null,null,null,null,null,null,null,null,null,null,null,null,null,null,null,null,null,null,null,null,null,null,null,null,null,null,null,null,null,null,null,null,null,null,null,null,null,null,null,null,null,"xx","TX423B"]
[0,"~AT009",null,null,null,null,null,null,null,null,null,null,null,null,null,null,null,null,null,null,null,null,null,null,null,null,null,null,null,null,null,null,null,null,null,null,null,null,null,null,null,null,null,null,null,"xx","TX423B"]
[0,"~AT010",null,null,null,null,null,null,null,null,null,null,null,null,null,null,null,null,null,null,null,null,null,null,null,null,null,null,null,null,null,null,null,null,null,null,null,null,null,null,null,null,null,null,null,"xx","TX423B"]
[0,"~AT011",null,null,null,null,null,null,null,null,null,null,null,null,null,null,null,null,null,null,null,null,null,null,null,null,null,null,null,null,null,null,null,null,null,null,null,null,null,null,null,null,null,null,null,"xx","TX423B"]
[0,"~AT012",null,null,null,null,null,null,null,null,null,null,null,null,null,null,null,null,null,null,null,null,null,null,null,null,null,null,null,null,null,null,null,null,null,null,null,null,null,null,null,null,null,null,null,"xx","TX423B"]
[0,"~AT013",null,null,null,null,null,null,null,null,null,null,null,null,null,null,null,null,null,null,null,null,null,null,null,null,null,null,null,null,null,null,null,null,null,null,null,null,null,null,null,null,null,null,null,"xx","TX423B"]
[0,"~AT014",null,null,null,null,null,null,null,null,null,null,null,null,null,null,null,null,null,null,null,null,null,null,null,null,null,null,null,null,null,null,null,null,null,null,null,null,null,null,null,null,null,null,null,"xx","TX423B"]
[0,"~AT015",null,null,null,null,null,null,null,null,null,null,null,null,null,null,null,null,null,null,null,null,null,null,null,null,null,null,null,null,null,null,null,null,null,null,null,null,null,null,null,null,null,null,null,"xx","TX423B"]
[0,"~AT016",null,null,null,null,null,null,null,null,null,null,null,null,null,null,null,null,null,null,null,null,null,null,null,null,null,null,null,null,null,null,null,null,null,null,null,null,null,null,null,null,null,null,null,"xx","TX423B"]
[0,"~AT017",null,null,null,null,null,null,null,null,null,null,null,null,null,null,null,null,null,null,null,null,null,null,null,null,null,null,null,null,null,null,null,null,null,null,null,null,null,null,null,null,null,null,null,"xx","TX423B"]
[0,"~AT018",null,null,null,null,null,null,null,null,null,null,null,null,null,null,null,null,null,null,null,null,null,null,null,null,null,null,null,null,null,null,null,null,null,null,null,null,null,null,null,null,null,null,null,"xx","TX423B"]
[0,"~AT019",null,null,null,null,null,null,null,null,null,null,null,null,null,null,null,null,null,null,null,null,null,null,null,null,null,null,null,null,null,null,null,null,null,null,null,null,null,null,null,null,null,null,null,"xx","TX423B"]
[0,"~AT020",null,null,null,null,null,null,null,null,null,null,null,null,null,null,null,null,null,null,null,null,null,null,null,null,null,null,null,null,null,null,null,null,null,null,null,null,null,null,null,null,null,null,null,"xx","TX423B"]
[0,"~AT021",null,null,null,null,null,null,null,null,null,null,null,null,null,null,null,null,null,null,null,null,null,null,null,null,null,null,null,null,null,null,null,null,null,null,null,null,null,null,null,null,null,null,null,"xx","TX423B"]
[0,"~AT022",null,null,null,null,null,null,null,null,null,null,null,null,null,null,null,null,null,null,null,null,null,null,null,null,null,null,null,null,null,null,null,null,null,null,null,null,null,null,null,null,null,null,null,"xx","TX423B"]
[0,"~AT023",null,null,null,null,null,null,null,null,null,null,null,null,null,null,null,null,null,null,null,null,null,null,null,null,null,null,null,null,null,null,null,null,null,null,null,null,null,null,null,null,null,null,null,"xx","TX423B"]
[0,"~AT024",null,null,null,null,null,null,null,null,null,null,null,null,null,null,null,null,null,null,null,null,null,null,null,null,null,null,null,null,null,null,null,null,null,null,null,null,null,null,null,null,null,null,null,"xx","TX423B"]
[0,"~AT025",null,null,null,null,null,null,null,null,null,null,null,null,null,null,null,null,null,null,null,null,null,null,null,null,null,null,null,null,null,null,null,null,null,null,null,null,null,null,null,null,null,null,null,"xx","TX423B"]
[0,"~AT026",null,null,null,null,null,null,null,null,null,null,null,null,null,null,null,null,null,null,null,null,null,null,null,null,null,null,null,null,null,null,null,null,null,null,null,null,null,null,null,null,null,null,null,"xx","TX423B"]
[0,"~AT027",null,null,null,null,null,null,null,null,null,null,null,null,null,null,null,null,null,null,null,null,null,null,null,null,null,null,null,null,null,null,null,null,null,null,null,null,null,null,null,null,null,null,null,"xx","TX423B"]
[0,"~AT028",null,null,null,null,null,null,null,null,null,null,null,null,null,null,null,null,null,null,null,null,null,null,null,null,null,null,null,null,null,null,null,null,null,null,null,null,null,null,null,null,null,null,null,"xx","TX423B"]
[0,"~AT029",null,null,null,null,null,null,null,null,null,null,null,null,null,null,null,null,null,null,null,null,null,null,null,null,null,null,null,null,null,null,null,null,null,null,null,null,null,null,null,null,null,null,null,"xx","TX423B"]
[0,"~AT030",null,null,null,null,null,null,null,null,null,null,null,null,null,null,null,null,null,null,null,null,null,null,null,null,null,null,null,null,null,null,null,null,null,null,null,null,null,null,null,null,null,null,null,"xx","TX423B"]
[0,"~AT031",null,null,null,null,null,null,null,null,null,null,null,null,null,null,null,null,null,null,null,null,null,null,null,null,null,null,null,null,null,null,null,null,null,null,null,null,null,null,null,null,null,null,null,"xx","TX423B"]
[0,"~AT032",null,null,null,null,null,null,null,null,null,null,null,null,null,null,null,null,null,null,null,null,null,null,null,null,null,null,null,null,null,null,null,null,null,null,null,null,null,null,null,null,null,null,null,"xx","TX423B"]
[0,"~AT033",null,null,null,null,null,null,null,null,null,null,null,null,null,null,null,null,null,null,null,null,null,null,null,null,null,null,null,null,null,null,null,null,null,null,null,null,null,null,null,null,null,null,null,"xx","TX423B"]
[0,"~AT034",null,null,null,null,null,null,null,null,null,null,null,null,null,null,null,null,null,null,null,null,null,null,null,null,null,null,null,null,null,null,null,null,null,null,null,null,null,null,null,null,null,null,null,"xx","TX423B"]
[0,"~AT035",null,null,null,null,null,null,null,null,null,null,null,null,null,null,null,null,null,null,null,null,null,null,null,null,null,null,null,null,null,null,null,null,null,null,null,null,null,null,null,null,null,null,null,"xx","TX423B"]
[0,"~AT036",null,null,null,null,null,null,null,null,null,null,null,null,null,null,null,null,null,null,null,null,null,null,null,null,null,null,null,null,null,null,null,null,null,null,null,null,null,null,null,null,null,null,null,"xx","TX423B"]
[0,"~AT037",null,null,null,null,null,null,null,null,null,null,null,null,null,null,null,null,null,null,null,null,null,null,null,null,null,null,null,null,null,null,null,null,null,null,null,null,null,null,null,null,null,null,null,"xx","TX423B"]
[0,"~AT038",null,null,null,null,null,null,null,null,null,null,null,null,null,null,null,null,null,null,null,null,null,null,null,null,null,null,null,null,null,null,null,null,null,null,null,null,null,null,null,null,null,null,null,"xx","TX423B"]
[0,"~AT039",null,null,null,null,null,null,null,null,null,null,null,null,null,null,null,null,null,null,null,null,null,null,null,null,null,null,null,null,null,null,null,null,null,null,null,null,null,null,null,null,null,null,null,"xx","TX423B"]
[0,"~AT040",null,null,null,null,null,null,null,null,null,null,null,null,null,null,null,null,null,null,null,null,null,null,null,null,null,null,null,null,null,null,null,null,null,null,null,null,null,null,null,null,null,null,null,"xx","TX423B"]
[0,"~AT041",null,null,null,null,null,null,null,null,null,null,null,null,null,null,null,null,null,null,null,null,null,null,null,null,null,null,null,null,null,null,null,null,null,null,null,null,null,null,null,null,null,null,null,"xx","TX423B"]
[0,"~AT042",null,null,null,null,null,null,null,null,null,null,null,null,null,null,null,null,null,null,null,null,null,null,null,null,null,null,null,null,null,null,null,null,null,null,null,null,null,null,null,null,null,null,null,"xx","TX423B"]
[0,"~AT043",null,null,null,null,null,null,null,null,null,null,null,null,null,null,null,null,null,null,null,null,null,null,null,null,null,null,null,null,null,null,null,null,null,null,null,null,null,null,null,null,null,null,null,"xx","TX423B"]
[0,"~AT044",null,null,null,null,null,null,null,null,null,null,null,null,null,null,null,null,null,null,null,null,null,null,null,null,null,null,null,null,null,null,null,null,null,null,null,null,null,null,null,null,null,null,null,"xx","TX423B"]
[0,"~AT045",null,null,null,null,null,null,null,null,null,null,null,null,null,null,null,null,null,null,null,null,null,null,null,null,null,null,null,null,null,null,null,null,null,null,null,null,null,null,null,null,null,null,null,"xx","TX423B"]
[0,"~AT046",null,null,null,null,null,null,null,null,null,null,null,null,null,null,null,null,null,null,null,null,null,null,null,null,null,null,null,null,null,null,null,null,null,null,null,null,null,null,null,null,null,null,null,"xx","TX423B"]
[0,"~AT047",null,null,null,null,null,null,null,null,null,null,null,null,null,null,null,null,null,null,null,null,null,null,null,null,null,null,null,null,null,null,null,null,null,null,null,null,null,null,null,null,null,null,null,"xx","TX423B"]
[0,"~AT048",null,null,null,null,null,null,null,null,null,null,null,null,null,null,null,null,null,null,null,null,null,null,null,null,null,null,null,null,null,null,null,null,null,null,null,null,null,null,null,null,null,null,null,"xx","TX423B"]
[0,"~AT049",null,null,null,null,null,null,null,null,null,null,null,null,null,null,null,null,null,null,null,null,null,null,null,null,null,null,null,null,null,null,null,null,null,null,null,null,null,null,null,null,null,null,null,"xx","TX423B"]
[0,"~AT050",null,null,null,null,null,null,null,null,null,null,null,null,null,null,null,null,null,null,null,null,null,null,null,null,null,null,null,null,null,null,null,null,null,null,null,null,null,null,null,null,null,null,null,"xx","TX423B"]
[0,"~AT051",null,null,null,null,null,null,null,null,null,null,null,null,null,null,null,null,null,null,null,null,null,null,null,null,null,null,null,null,null,null,null,null,null,null,null,null,null,null,null,null,null,null,null,"xx","TX423B"]
[0,"~AT052",null,null,null,null,null,null,null,null,null,null,null,null,null,null,null,null,null,null,null,null,null,null,null,null,null,null,null,null,null,null,null,null,null,null,null,null,null,null,null,null,null,null,null,"xx","TX423B"]
[0,"~AT053",null,null,null,null,null,null,null,null,null,null,null,null,null,null,null,null,null,null,null,null,null,null,null,null,null,null,null,null,null,null,null,null,null,null,null,null,null,null,null,null,null,null,null,"xx","TX423B"]
[0,"~AT054",null,null,null,null,null,null,null,null,null,null,null,null,null,null,null,null,null,null,null,null,null,null,null,null,null,null,null,null,null,null,null,null,null,null,null,null,null,null,null,null,null,null,null,"xx","TX423B"]
[0,"~AT055",null,null,null,null,null,null,null,null,null,null,null,null,null,null,null,null,null,null,null,null,null,null,null,null,null,null,null,null,null,null,null,null,null,null,null,null,null,null,null,null,null,null,null,"xx","TX423B"]
[0,"~AT056",null,null,null,null,null,null,null,null,null,null,null,null,null,null,null,null,null,null,null,null,null,null,null,null,null,null,null,null,null,null,null,null,null,null,null,null,null,null,null,null,null,null,null,"xx","TX423B"]
[0,"~AT057",null,null,null,null,null,null,null,null,null,null,null,null,null,null,null,null,null,null,null,null,null,null,null,null,null,null,null,null,null,null,null,null,null,null,null,null,null,null,null,null,null,null,null,"xx","TX423B"]
[0,"~AT058",null,null,null,null,null,null,null,null,null,null,null,null,null,null,null,null,null,null,null,null,null,null,null,null,null,null,null,null,null,null,null,null,null,null,null,null,null,null,null,null,null,null,null,"xx","TX423B"]
[0,"~AT059",null,null,null,null,null,null,null,null,null,null,null,null,null,null,null,null,null,null,null,null,null,null,null,null,null,null,null,null,null,null,null,null,null,null,null,null,null,null,null,null,null,null,null,"xx","TX423B"]
[0,"~AT060",null,null,null,null,null,null,null,null,null,null,null,null,null,null,null,null,null,null,null,null,null,null,null,null,null,null,null,null,null,null,null,null,null,null,null,null,null,null,null,null,null,null,null,"xx","TX423B"]
[0,"~AT061",null,null,null,null,null,null,null,null,null,null,null,null,null,null,null,null,null,null,null,null,null,null,null,null,null,null,null,null,null,null,null,null,null,null,null,null,null,null,null,null,null,null,null,"xx","TX423B"]
[0,"~AT062",null,null,null,null,null,null,null,null,null,null,null,null,null,null,null,null,null,null,null,null,null,null,null,null,null,null,null,null,null,null,null,null,null,null,null,null,null,null,null,null,null,null,null,"xx","TX423B"]
[0,"~AT063",null,null,null,null,null,null,null,null,null,null,null,null,null,null,null,null,null,null,null,null,null,null,null,null,null,null,null,null,null,null,null,null,null,null,null,null,null,null,null,null,null,null,null,"xx","TX423B"]
[0,"~AT064",null,null,null,null,null,null,null,null,null,null,null,null,null,null,null,null,null,null,null,null,null,null,null,null,null,null,null,null,null,null,null,null,null,null,null,null,null,null,null,null,null,null,null,"xx","TX423B"]
[0,"~AT065",null,null,null,null,null,null,null,null,null,null,null,null,null,null,null,null,null,null,null,null,null,null,null,null,null,null,null,null,null,null,null,null,null,null,null,null,null,null,null,null,null,null,null,"xx","TX423B"]
[{"$f":"IF(COUNTBLANK(C112:AR112)=42,0,1)","v":0},"~AT066",null,null,null,null,null,null,null,null,null,null,null,null,null,null,null,null,null,null,null,null,null,null,null,null,null,null,null,null,null,null,null,null,null,null,null,null,null,null,null,null,null,null,null,"xx","TX423B"]
[0,"~AT067",null,null,null,null,null,null,null,null,null,null,null,null,null,null,null,null,null,null,null,null,null,null,null,null,null,null,null,null,null,null,null,null,null,null,null,null,null,null,null,null,null,null,null,"xx","TX423B"]
[0,"~AT068",null,null,null,null,null,null,null,null,null,null,null,null,null,null,null,null,null,null,null,null,null,null,null,null,null,null,null,null,null,null,null,null,null,null,null,null,null,null,null,null,null,null,null,"xx","TX423B"]
[0,"~AT069",null,null,null,null,null,null,null,null,null,null,null,null,null,null,null,null,null,null,null,null,null,null,null,null,null,null,null,null,null,null,null,null,null,null,null,null,null,null,null,null,null,null,null,"xx","TX423B"]
[0,"~AT070",null,null,null,null,null,null,null,null,null,null,null,null,null,null,null,null,null,null,null,null,null,null,null,null,null,null,null,null,null,null,null,null,null,null,null,null,null,null,null,null,null,null,null,"xx","TX423B"]
[0,"~AT071",null,null,null,null,null,null,null,null,null,null,null,null,null,null,null,null,null,null,null,null,null,null,null,null,null,null,null,null,null,null,null,null,null,null,null,null,null,null,null,null,null,null,null,"xx","TX423B"]
[0,"~AT072",null,null,null,null,null,null,null,null,null,null,null,null,null,null,null,null,null,null,null,null,null,null,null,null,null,null,null,null,null,null,null,null,null,null,null,null,null,null,null,null,null,null,null,"xx","TX423B"]
[0,"~AT073",null,null,null,null,null,null,null,null,null,null,null,null,null,null,null,null,null,null,null,null,null,null,null,null,null,null,null,null,null,null,null,null,null,null,null,null,null,null,null,null,null,null,null,"xx","TX423B"]
[0,"~AT074",null,null,null,null,null,null,null,null,null,null,null,null,null,null,null,null,null,null,null,null,null,null,null,null,null,null,null,null,null,null,null,null,null,null,null,null,null,null,null,null,null,null,null,"xx","TX423B"]
[0,"~AT075",null,null,null,null,null,null,null,null,null,null,null,null,null,null,null,null,null,null,null,null,null,null,null,null,null,null,null,null,null,null,null,null,null,null,null,null,null,null,null,null,null,null,null,"xx","TX423B"]
[0,"~AT076",null,null,null,null,null,null,null,null,null,null,null,null,null,null,null,null,null,null,null,null,null,null,null,null,null,null,null,null,null,null,null,null,null,null,null,null,null,null,null,null,null,null,null,"xx","TX423B"]
[0,"~AT077",null,null,null,null,null,null,null,null,null,null,null,null,null,null,null,null,null,null,null,null,null,null,null,null,null,null,null,null,null,null,null,null,null,null,null,null,null,null,null,null,null,null,null,"xx","TX423B"]
[0,"~AT078",null,null,null,null,null,null,null,null,null,null,null,null,null,null,null,null,null,null,null,null,null,null,null,null,null,null,null,null,null,null,null,null,null,null,null,null,null,null,null,null,null,null,null,"xx","TX423B"]
[0,"~AT079",null,null,null,null,null,null,null,null,null,null,null,null,null,null,null,null,null,null,null,null,null,null,null,null,null,null,null,null,null,null,null,null,null,null,null,null,null,null,null,null,null,null,null,"xx","TX423B"]
[0,"~AT080",null,null,null,null,null,null,null,null,null,null,null,null,null,null,null,null,null,null,null,null,null,null,null,null,null,null,null,null,null,null,null,null,null,null,null,null,null,null,null,null,null,null,null,"xx","TX423B"]
[0,"~AT081",null,null,null,null,null,null,null,null,null,null,null,null,null,null,null,null,null,null,null,null,null,null,null,null,null,null,null,null,null,null,null,null,null,null,null,null,null,null,null,null,null,null,null,"xx","TX423B"]
[0,"~AT082",null,null,null,null,null,null,null,null,null,null,null,null,null,null,null,null,null,null,null,null,null,null,null,null,null,null,null,null,null,null,null,null,null,null,null,null,null,null,null,null,null,null,null,"xx","TX423B"]
[0,"~AT083",null,null,null,null,null,null,null,null,null,null,null,null,null,null,null,null,null,null,null,null,null,null,null,null,null,null,null,null,null,null,null,null,null,null,null,null,null,null,null,null,null,null,null,"xx","TX423B"]
[0,"~AT084",null,null,null,null,null,null,null,null,null,null,null,null,null,null,null,null,null,null,null,null,null,null,null,null,null,null,null,null,null,null,null,null,null,null,null,null,null,null,null,null,null,null,null,"xx","TX423B"]
[0,"~AT085",null,null,null,null,null,null,null,null,null,null,null,null,null,null,null,null,null,null,null,null,null,null,null,null,null,null,null,null,null,null,null,null,null,null,null,null,null,null,null,null,null,null,null,"xx","TX423B"]
[0,"~AT086",null,null,null,null,null,null,null,null,null,null,null,null,null,null,null,null,null,null,null,null,null,null,null,null,null,null,null,null,null,null,null,null,null,null,null,null,null,null,null,null,null,null,null,"xx","TX423B"]
[0,"~AT087",null,null,null,null,null,null,null,null,null,null,null,null,null,null,null,null,null,null,null,null,null,null,null,null,null,null,null,null,null,null,null,null,null,null,null,null,null,null,null,null,null,null,null,"xx","TX423B"]
[0,"~AT088",null,null,null,null,null,null,null,null,null,null,null,null,null,null,null,null,null,null,null,null,null,null,null,null,null,null,null,null,null,null,null,null,null,null,null,null,null,null,null,null,null,null,null,"xx","TX423B"]
[0,"~AT089",null,null,null,null,null,null,null,null,null,null,null,null,null,null,null,null,null,null,null,null,null,null,null,null,null,null,null,null,null,null,null,null,null,null,null,null,null,null,null,null,null,null,null,"xx","TX423B"]
[0,"~AT090",null,null,null,null,null,null,null,null,null,null,null,null,null,null,null,null,null,null,null,null,null,null,null,null,null,null,null,null,null,null,null,null,null,null,null,null,null,null,null,null,null,null,null,"xx","TX423B"]
[0,"~AT091",null,null,null,null,null,null,null,null,null,null,null,null,null,null,null,null,null,null,null,null,null,null,null,null,null,null,null,null,null,null,null,null,null,null,null,null,null,null,null,null,null,null,null,"xx","TX423B"]
[0,"~AT092",null,null,null,null,null,null,null,null,null,null,null,null,null,null,null,null,null,null,null,null,null,null,null,null,null,null,null,null,null,null,null,null,null,null,null,null,null,null,null,null,null,null,null,"xx","TX423B"]
[0,"~AT093",null,null,null,null,null,null,null,null,null,null,null,null,null,null,null,null,null,null,null,null,null,null,null,null,null,null,null,null,null,null,null,null,null,null,null,null,null,null,null,null,null,null,null,"xx","TX423B"]
[0,"~AT094",null,null,null,null,null,null,null,null,null,null,null,null,null,null,null,null,null,null,null,null,null,null,null,null,null,null,null,null,null,null,null,null,null,null,null,null,null,null,null,null,null,null,null,"xx","TX423B"]
[0,"~AT095",null,null,null,null,null,null,null,null,null,null,null,null,null,null,null,null,null,null,null,null,null,null,null,null,null,null,null,null,null,null,null,null,null,null,null,null,null,null,null,null,null,null,null,"xx","TX423B"]
[0,"~AT096",null,null,null,null,null,null,null,null,null,null,null,null,null,null,null,null,null,null,null,null,null,null,null,null,null,null,null,null,null,null,null,null,null,null,null,null,null,null,null,null,null,null,null,"xx","TX423B"]
[0,"~AT097",null,null,null,null,null,null,null,null,null,null,null,null,null,null,null,null,null,null,null,null,null,null,null,null,null,null,null,null,null,null,null,null,null,null,null,null,null,null,null,null,null,null,null,"xx","TX423B"]
[0,"~AT098",null,null,null,null,null,null,null,null,null,null,null,null,null,null,null,null,null,null,null,null,null,null,null,null,null,null,null,null,null,null,null,null,null,null,null,null,null,null,null,null,null,null,null,"xx","TX423B"]
[0,"~AT099",null,null,null,null,null,null,null,null,null,null,null,null,null,null,null,null,null,null,null,null,null,null,null,null,null,null,null,null,null,null,null,null,null,null,null,null,null,null,null,null,null,null,null,"xx","TX423B"]
[0,"~AT100",null,null,null,null,null,null,null,null,null,null,null,null,null,null,null,null,null,null,null,null,null,null,null,null,null,null,null,null,null,null,null,null,null,null,null,null,null,null,null,null,null,null,null,"xx","TX423B"]
[]
[null,"Locked By:",null,null,"TxDOT:",null,null,"District:",null,null,"Area:"]
[null,"",null,null,"",null,null,"",null,null,""]
[null,"Authorized By:",null,null,null,"Authorized Date:"]

{"sheet":"RX","index":1,"n_rows":42,"n_cols":9,"rows_kept":42,"cut":false,"hidden":true,"merged":[]}
[40]
["Fld_nbr","Value","Desc_1","Desc_2","Desc_3","Desc_4","Desc_5","Desc_6","Desc_7"]
[1,{"$f":"IF('TEX-423b'!$B$33=\"\",\"\",'TEX-423b'!$B$33)","v":""},{"$f":"'TEX-423b'!$B$32","v":"Remarks:"}]
[2,{"$f":"IF('TEX-423b'!$E$19=\"\",\"\",'TEX-423b'!$E$19)","v":""},{"$f":"IF('TEX-423b'!$B$19=\"\",\"\",'TEX-423b'!$B$19)","v":"COURSE\\LIFT:"}]
[3,{"$f":"IF('TEX-423b'!$D$38=\"\",\"\",'TEX-423b'!$D$38)","v":""},"Tested By ",{"$f":"IF('TEX-423b'!$B$38=\"\",\"\",'TEX-423b'!$B$38)","v":"TX423"}]
[4,{"$f":"IF('TEX-423b'!$M$38=\"\",\"\",'TEX-423b'!$M$38)","v":""},"Tested Date ",{"$f":"IF('TEX-423b'!$B$38=\"\",\"\",'TEX-423b'!$B$38)","v":"TX423"}]
[5,{"$f":"IF('TEX-423b'!$C$27=\"\",\"\",'TEX-423b'!$C$27)","v":""},{"$f":"'TEX-423b'!$B$5","v":"DIRECT MEASUREMENT OF BRIDGE DECK THICKNESS"},{"$f":"'TEX-423b'!$C$24","v":"Bay 1"},{"$f":"'TEX-423b'!$C$25","v":0.25},{"$f":"'TEX-423b'!$K$26","v":"Concrete Depth,(inches)"}]
[6,{"$f":"IF('TEX-423b'!$D$27=\"\",\"\",'TEX-423b'!$D$27)","v":""},{"$f":"'TEX-423b'!$B$5","v":"DIRECT MEASUREMENT OF BRIDGE DECK THICKNESS"},{"$f":"'TEX-423b'!$C$24","v":"Bay 1"},{"$f":"'TEX-423b'!$D$25","v":0.5},{"$f":"'TEX-423b'!$K$26","v":"Concrete Depth,(inches)"}]
[7,{"$f":"IF('TEX-423b'!$E$27=\"\",\"\",'TEX-423b'!$E$27)","v":""},{"$f":"'TEX-423b'!$B$5","v":"DIRECT MEASUREMENT OF BRIDGE DECK THICKNESS"},{"$f":"'TEX-423b'!$C$24","v":"Bay 1"},{"$f":"'TEX-423b'!$E$25","v":0.75},{"$f":"'TEX-423b'!$K$26","v":"Concrete Depth,(inches)"}]
[8,{"$f":"IF('TEX-423b'!$F$27=\"\",\"\",'TEX-423b'!$F$27)","v":""},{"$f":"'TEX-423b'!$B$5","v":"DIRECT MEASUREMENT OF BRIDGE DECK THICKNESS"},{"$f":"'TEX-423b'!$F$24","v":"Bay 2"},{"$f":"'TEX-423b'!$F$25","v":0.25},{"$f":"'TEX-423b'!$K$26","v":"Concrete Depth,(inches)"}]
[9,{"$f":"IF('TEX-423b'!$G$27=\"\",\"\",'TEX-423b'!$G$27)","v":""},{"$f":"'TEX-423b'!$B$5","v":"DIRECT MEASUREMENT OF BRIDGE DECK THICKNESS"},{"$f":"'TEX-423b'!$F$24","v":"Bay 2"},{"$f":"'TEX-423b'!$G$25","v":0.5},{"$f":"'TEX-423b'!$K$26","v":"Concrete Depth,(inches)"}]
[10,{"$f":"IF('TEX-423b'!$H$27=\"\",\"\",'TEX-423b'!$H$27)","v":""},{"$f":"'TEX-423b'!$B$5","v":"DIRECT MEASUREMENT OF BRIDGE DECK THICKNESS"},{"$f":"'TEX-423b'!$F$24","v":"Bay 2"},{"$f":"'TEX-423b'!$H$25","v":0.75},{"$f":"'TEX-423b'!$K$26","v":"Concrete Depth,(inches)"}]
[11,{"$f":"IF('TEX-423b'!$I$27=\"\",\"\",'TEX-423b'!$I$27)","v":""},{"$f":"'TEX-423b'!$B$5","v":"DIRECT MEASUREMENT OF BRIDGE DECK THICKNESS"},{"$f":"'TEX-423b'!$I$24","v":"Bay 3"},{"$f":"'TEX-423b'!$I$25","v":0.25},{"$f":"'TEX-423b'!$K$26","v":"Concrete Depth,(inches)"}]
[12,{"$f":"IF('TEX-423b'!$J$27=\"\",\"\",'TEX-423b'!$J$27)","v":""},{"$f":"'TEX-423b'!$B$5","v":"DIRECT MEASUREMENT OF BRIDGE DECK THICKNESS"},{"$f":"'TEX-423b'!$I$24","v":"Bay 3"},{"$f":"'TEX-423b'!$J$25","v":0.5},{"$f":"'TEX-423b'!$K$26","v":"Concrete Depth,(inches)"}]
[13,{"$f":"IF('TEX-423b'!$K$27=\"\",\"\",'TEX-423b'!$K$27)","v":""},{"$f":"'TEX-423b'!$B$5","v":"DIRECT MEASUREMENT OF BRIDGE DECK THICKNESS"},{"$f":"'TEX-423b'!$I$24","v":"Bay 3"},{"$f":"'TEX-423b'!$K$25","v":0.75},{"$f":"'TEX-423b'!$K$26","v":"Concrete Depth,(inches)"}]
[14,{"$f":"IF('TEX-423b'!$L$27=\"\",\"\",'TEX-423b'!$L$27)","v":""},{"$f":"'TEX-423b'!$B$5","v":"DIRECT MEASUREMENT OF BRIDGE DECK THICKNESS"},{"$f":"'TEX-423b'!$L$24","v":"Bay 4"},{"$f":"'TEX-423b'!$L$25","v":0.25},{"$f":"'TEX-423b'!$K$26","v":"Concrete Depth,(inches)"}]
[15,{"$f":"IF('TEX-423b'!$M$27=\"\",\"\",'TEX-423b'!$M$27)","v":""},{"$f":"'TEX-423b'!$B$5","v":"DIRECT MEASUREMENT OF BRIDGE DECK THICKNESS"},{"$f":"'TEX-423b'!$L$24","v":"Bay 4"},{"$f":"'TEX-423b'!$M$25","v":0.5},{"$f":"'TEX-423b'!$K$26","v":"Concrete Depth,(inches)"}]
[16,{"$f":"IF('TEX-423b'!$N$27=\"\",\"\",'TEX-423b'!$N$27)","v":""},{"$f":"'TEX-423b'!$B$5","v":"DIRECT MEASUREMENT OF BRIDGE DECK THICKNESS"},{"$f":"'TEX-423b'!$L$24","v":"Bay 4"},{"$f":"'TEX-423b'!$N$25","v":0.75},{"$f":"'TEX-423b'!$K$26","v":"Concrete Depth,(inches)"}]
[17,{"$f":"IF('TEX-423b'!$O$27=\"\",\"\",'TEX-423b'!$O$27)","v":""},{"$f":"'TEX-423b'!$B$5","v":"DIRECT MEASUREMENT OF BRIDGE DECK THICKNESS"},{"$f":"'TEX-423b'!$O$24","v":"Bay 5"},{"$f":"'TEX-423b'!$O$25","v":0.25},{"$f":"'TEX-423b'!$K$26","v":"Concrete Depth,(inches)"}]
[18,{"$f":"IF('TEX-423b'!$P$27=\"\",\"\",'TEX-423b'!$P$27)","v":""},{"$f":"'TEX-423b'!$B$5","v":"DIRECT MEASUREMENT OF BRIDGE DECK THICKNESS"},{"$f":"'TEX-423b'!$O$24","v":"Bay 5"},{"$f":"'TEX-423b'!$P$25","v":0.5},{"$f":"'TEX-423b'!$K$26","v":"Concrete Depth,(inches)"}]
[19,{"$f":"IF('TEX-423b'!$Q$27=\"\",\"\",'TEX-423b'!$Q$27)","v":""},{"$f":"'TEX-423b'!$B$5","v":"DIRECT MEASUREMENT OF BRIDGE DECK THICKNESS"},{"$f":"'TEX-423b'!$O$24","v":"Bay 5"},{"$f":"'TEX-423b'!$Q$25","v":0.75},{"$f":"'TEX-423b'!$K$26","v":"Concrete Depth,(inches)"}]
[20,{"$f":"IF('TEX-423b'!$R$27=\"\",\"\",'TEX-423b'!$R$27)","v":""},{"$f":"'TEX-423b'!$B$5","v":"DIRECT MEASUREMENT OF BRIDGE DECK THICKNESS"},{"$f":"'TEX-423b'!$R$24","v":"Bay 6"},{"$f":"'TEX-423b'!$R$25","v":0.25},{"$f":"'TEX-423b'!$K$26","v":"Concrete Depth,(inches)"}]
[21,{"$f":"IF('TEX-423b'!$S$27=\"\",\"\",'TEX-423b'!$S$27)","v":""},{"$f":"'TEX-423b'!$B$5","v":"DIRECT MEASUREMENT OF BRIDGE DECK THICKNESS"},{"$f":"'TEX-423b'!$R$24","v":"Bay 6"},{"$f":"'TEX-423b'!$S$25","v":0.5},{"$f":"'TEX-423b'!$K$26","v":"Concrete Depth,(inches)"}]
[22,{"$f":"IF('TEX-423b'!$T$27=\"\",\"\",'TEX-423b'!$T$27)","v":""},{"$f":"'TEX-423b'!$B$5","v":"DIRECT MEASUREMENT OF BRIDGE DECK THICKNESS"},{"$f":"'TEX-423b'!$R$24","v":"Bay 6"},{"$f":"'TEX-423b'!$T$25","v":0.75},{"$f":"'TEX-423b'!$K$26","v":"Concrete Depth,(inches)"}]
[23,{"$f":"IF('TEX-423b'!$C$27=\"\",\"\",'TEX-423b'!$C$27)","v":""},{"$f":"'TEX-423b'!$B$5","v":"DIRECT MEASUREMENT OF BRIDGE DECK THICKNESS"},{"$f":"'TEX-423b'!$C$24","v":"Bay 1"},{"$f":"'TEX-423b'!$C$25","v":0.25},{"$f":"'TEX-423b'!$K$29","v":"Steel Cover,(inches)"}]
[24,{"$f":"IF('TEX-423b'!$D$27=\"\",\"\",'TEX-423b'!$D$27)","v":""},{"$f":"'TEX-423b'!$B$5","v":"DIRECT MEASUREMENT OF BRIDGE DECK THICKNESS"},{"$f":"'TEX-423b'!$C$24","v":"Bay 1"},{"$f":"'TEX-423b'!$D$25","v":0.5},{"$f":"'TEX-423b'!$K$29","v":"Steel Cover,(inches)"}]
[25,{"$f":"IF('TEX-423b'!$E$27=\"\",\"\",'TEX-423b'!$E$27)","v":""},{"$f":"'TEX-423b'!$B$5","v":"DIRECT MEASUREMENT OF BRIDGE DECK THICKNESS"},{"$f":"'TEX-423b'!$C$24","v":"Bay 1"},{"$f":"'TEX-423b'!$E$25","v":0.75},{"$f":"'TEX-423b'!$K$29","v":"Steel Cover,(inches)"}]
[26,{"$f":"IF('TEX-423b'!$F$27=\"\",\"\",'TEX-423b'!$F$27)","v":""},{"$f":"'TEX-423b'!$B$5","v":"DIRECT MEASUREMENT OF BRIDGE DECK THICKNESS"},{"$f":"'TEX-423b'!$F$24","v":"Bay 2"},{"$f":"'TEX-423b'!$F$25","v":0.25},{"$f":"'TEX-423b'!$K$29","v":"Steel Cover,(inches)"}]
[27,{"$f":"IF('TEX-423b'!$G$27=\"\",\"\",'TEX-423b'!$G$27)","v":""},{"$f":"'TEX-423b'!$B$5","v":"DIRECT MEASUREMENT OF BRIDGE DECK THICKNESS"},{"$f":"'TEX-423b'!$F$24","v":"Bay 2"},{"$f":"'TEX-423b'!$G$25","v":0.5},{"$f":"'TEX-423b'!$K$29","v":"Steel Cover,(inches)"}]
[28,{"$f":"IF('TEX-423b'!$H$27=\"\",\"\",'TEX-423b'!$H$27)","v":""},{"$f":"'TEX-423b'!$B$5","v":"DIRECT MEASUREMENT OF BRIDGE DECK THICKNESS"},{"$f":"'TEX-423b'!$F$24","v":"Bay 2"},{"$f":"'TEX-423b'!$H$25","v":0.75},{"$f":"'TEX-423b'!$K$29","v":"Steel Cover,(inches)"}]
[29,{"$f":"IF('TEX-423b'!$I$27=\"\",\"\",'TEX-423b'!$I$27)","v":""},{"$f":"'TEX-423b'!$B$5","v":"DIRECT MEASUREMENT OF BRIDGE DECK THICKNESS"},{"$f":"'TEX-423b'!$I$24","v":"Bay 3"},{"$f":"'TEX-423b'!$I$25","v":0.25},{"$f":"'TEX-423b'!$K$29","v":"Steel Cover,(inches)"}]
[30,{"$f":"IF('TEX-423b'!$J$27=\"\",\"\",'TEX-423b'!$J$27)","v":""},{"$f":"'TEX-423b'!$B$5","v":"DIRECT MEASUREMENT OF BRIDGE DECK THICKNESS"},{"$f":"'TEX-423b'!$I$24","v":"Bay 3"},{"$f":"'TEX-423b'!$J$25","v":0.5},{"$f":"'TEX-423b'!$K$29","v":"Steel Cover,(inches)"}]
[31,{"$f":"IF('TEX-423b'!$K$27=\"\",\"\",'TEX-423b'!$K$27)","v":""},{"$f":"'TEX-423b'!$B$5","v":"DIRECT MEASUREMENT OF BRIDGE DECK THICKNESS"},{"$f":"'TEX-423b'!$I$24","v":"Bay 3"},{"$f":"'TEX-423b'!$K$25","v":0.75},{"$f":"'TEX-423b'!$K$29","v":"Steel Cover,(inches)"}]
[32,{"$f":"IF('TEX-423b'!$L$27=\"\",\"\",'TEX-423b'!$L$27)","v":""},{"$f":"'TEX-423b'!$B$5","v":"DIRECT MEASUREMENT OF BRIDGE DECK THICKNESS"},{"$f":"'TEX-423b'!$L$24","v":"Bay 4"},{"$f":"'TEX-423b'!$L$25","v":0.25},{"$f":"'TEX-423b'!$K$29","v":"Steel Cover,(inches)"}]
[33,{"$f":"IF('TEX-423b'!$M$27=\"\",\"\",'TEX-423b'!$M$27)","v":""},{"$f":"'TEX-423b'!$B$5","v":"DIRECT MEASUREMENT OF BRIDGE DECK THICKNESS"},{"$f":"'TEX-423b'!$L$24","v":"Bay 4"},{"$f":"'TEX-423b'!$M$25","v":0.5},{"$f":"'TEX-423b'!$K$29","v":"Steel Cover,(inches)"}]
[34,{"$f":"IF('TEX-423b'!$N$27=\"\",\"\",'TEX-423b'!$N$27)","v":""},{"$f":"'TEX-423b'!$B$5","v":"DIRECT MEASUREMENT OF BRIDGE DECK THICKNESS"},{"$f":"'TEX-423b'!$L$24","v":"Bay 4"},{"$f":"'TEX-423b'!$N$25","v":0.75},{"$f":"'TEX-423b'!$K$29","v":"Steel Cover,(inches)"}]
[35,{"$f":"IF('TEX-423b'!$O$27=\"\",\"\",'TEX-423b'!$O$27)","v":""},{"$f":"'TEX-423b'!$B$5","v":"DIRECT MEASUREMENT OF BRIDGE DECK THICKNESS"},{"$f":"'TEX-423b'!$O$24","v":"Bay 5"},{"$f":"'TEX-423b'!$O$25","v":0.25},{"$f":"'TEX-423b'!$K$29","v":"Steel Cover,(inches)"}]
[36,{"$f":"IF('TEX-423b'!$P$27=\"\",\"\",'TEX-423b'!$P$27)","v":""},{"$f":"'TEX-423b'!$B$5","v":"DIRECT MEASUREMENT OF BRIDGE DECK THICKNESS"},{"$f":"'TEX-423b'!$O$24","v":"Bay 5"},{"$f":"'TEX-423b'!$P$25","v":0.5},{"$f":"'TEX-423b'!$K$29","v":"Steel Cover,(inches)"}]
[37,{"$f":"IF('TEX-423b'!$Q$27=\"\",\"\",'TEX-423b'!$Q$27)","v":""},{"$f":"'TEX-423b'!$B$5","v":"DIRECT MEASUREMENT OF BRIDGE DECK THICKNESS"},{"$f":"'TEX-423b'!$O$24","v":"Bay 5"},{"$f":"'TEX-423b'!$Q$25","v":0.75},{"$f":"'TEX-423b'!$K$29","v":"Steel Cover,(inches)"}]
[38,{"$f":"IF('TEX-423b'!$R$27=\"\",\"\",'TEX-423b'!$R$27)","v":""},{"$f":"'TEX-423b'!$B$5","v":"DIRECT MEASUREMENT OF BRIDGE DECK THICKNESS"},{"$f":"'TEX-423b'!$R$24","v":"Bay 6"},{"$f":"'TEX-423b'!$R$25","v":0.25},{"$f":"'TEX-423b'!$K$29","v":"Steel Cover,(inches)"}]
[39,{"$f":"IF('TEX-423b'!$S$27=\"\",\"\",'TEX-423b'!$S$27)","v":""},{"$f":"'TEX-423b'!$B$5","v":"DIRECT MEASUREMENT OF BRIDGE DECK THICKNESS"},{"$f":"'TEX-423b'!$R$24","v":"Bay 6"},{"$f":"'TEX-423b'!$S$25","v":0.5},{"$f":"'TEX-423b'!$K$29","v":"Steel Cover,(inches)"}]
[40,{"$f":"IF('TEX-423b'!$T$27=\"\",\"\",'TEX-423b'!$T$27)","v":""},{"$f":"'TEX-423b'!$B$5","v":"DIRECT MEASUREMENT OF BRIDGE DECK THICKNESS"},{"$f":"'TEX-423b'!$R$24","v":"Bay 6"},{"$f":"'TEX-423b'!$T$25","v":0.75},{"$f":"'TEX-423b'!$K$29","v":"Steel Cover,(inches)"}]

{"sheet":"Revisions","index":2,"n_rows":2,"n_cols":3,"rows_kept":2,"cut":false,"hidden":true,"merged":[]}
["Date","Changes","By"]
["2016-10-06","Remove SDEWITT UID from workbook.","CPFEIFF"]